bitfinex-derivatives/quotes_ETHF0:USTF0_20251028
["timestamp","ask_amount","ask_price","bid_price","bid_amount"]
[1761628193367,42.32531126,4098.4,4098.3,0.34800901]
[1761628193666,42.32531126,4098.4,4098.3,0.00300901]
[1761628196972,42.32531126,4098.4,4098.3,0.34800901]
[1761628197166,42.32531126,4098.4,4098.3,0.57790901]
[1761628197662,42.32531126,4098.4,4098.3,0.34800901]
[1761628203272,42.32531126,4098.4,4098.3,0.00300901]
[1761628205478,42.14161126,4098.4,4098.3,0.78570901]
[1761628205679,41.2392,4098.4,4098.3,0.78570901]
[1761628207272,41.7760584,4098.4,4098.3,0.78570901]
[1761628207980,41.9598584,4098.4,4098.3,0.57470901]
[1761628208178,41.9598584,4098.4,4098.3,0.34480901]
[1761628209372,41.2392,4098.4,4098.3,0.56240901]
[1761628209572,41.2392,4098.4,4098.3,0.77340901]
[1761628213280,40.8,4098.4,4098.3,0.77340901]
[1761628213475,0.43919,4098.5,4098.4,0.3418]
[1761628213684,0.43919,4098.5,4098.4,1.2096]
[1761628213982,0.43918,4098.7,4098.6,1.20958]
[1761628214184,0.62298,4098.7,4098.6,1.87586265]
[1761628214482,0.99058,4098.6,4098.5,1.31646265]
[1761628214675,0.8068,4098.4,4098.3,0.22060901]
[1761628214876,41.6068,4098.4,4098.3,0.22060901]
[1761628215076,41.6068,4098.4,4098.3,0.43160901]
[1761628215284,41.6068,4098.4,4098.3,0.77340901]
[1761628217582,41.7909,4098.4,4098.3,0.34480901]
[1761628217781,41.7909,4098.4,4098.3,0.57560901]
[1761628221983,41.7909,4098.4,4098.3,0.34480901]
[1761628222184,41.7909,4098.4,4098.3,0.00300901]
[1761628222393,41.7909,4098.4,4098.3,0.32800901]
[1761628223587,41.7909,4098.4,4098.3,0.53650901]
[1761628226191,41.7909,4098.4,4098.3,0.51260768]
[1761628226589,41.6068,4098.4,4098.3,0.73410768]
[1761628226889,41.2392,4098.4,4098.3,2.05057033]
[1761628227186,41.2392,4098.4,4098.3,2.05228907]
[1761628227387,41.2392,4098.4,4098.3,0.73582642]
[1761628230587,40.8,4098.4,4098.3,2.49149907]
[1761628230791,41.2392,4098.4,4098.3,1.99376866]
[1761628230994,0.4392,4098.4,4098.3,2.43297866]
[1761628232087,0.4392,4098.4,4098.3,1.99376866]
[1761628233390,0.8484,4098.4,4098.3,0.73582642]
[1761628233794,1.053,4098.4,4098.3,1.621933]
[1761628233985,1.053,4098.4,4098.3,0.30582642]
[1761628234387,41.853,4098.4,4098.3,0.30582642]
[1761628235300,41.853,4098.4,4098.3,1.621933]
[1761628236896,41.853,4098.4,4098.3,0.30582642]
[1761628237696,41.853,4098.4,4098.3,0.51432642]
[1761628237995,41.6484,4098.4,4098.3,1.830433]
[1761628238589,41.8532,4098.4,4098.3,1.830433]
[1761628238788,41.6484,4098.4,4098.3,1.830433]
[1761628239594,41.6484,4098.4,4098.3,2.055633]
[1761628243798,41.6484,4098.4,4098.3,2.494843]
[1761628243995,41.6484,4098.4,4098.3,1.17873642]
[1761628244194,41.6484,4098.4,4098.3,2.49541511]
[1761628245101,41.6484,4098.4,4098.3,2.05620511]
[1761628245500,41.6484,4098.4,4098.3,0.73952642]
[1761628246599,41.8532,4098.4,4098.3,0.73952642]
[1761628246798,41.8532,4098.4,4098.3,2.05635251]
[1761628247403,41.8532,4098.4,4098.3,0.51432642]
[1761628248905,41.8532,4098.4,4098.3,0.30582642]
[1761628251897,41.8532,4098.4,4098.3,0.00171874]
[1761628252098,42.38992335,4098.4,4098.3,0.00171874]
[1761628257702,42.38985715,4098.4,4098.3,0.00171874]
[1761628268907,42.38985715,4098.4,4098.3,0.31471874]
[1761628269611,42.38985715,4098.4,4098.3,0.52521874]
[1761628269817,42.18505715,4098.4,4098.3,0.73981874]
[1761628270012,42.38985715,4098.4,4098.3,0.31471874]
[1761628270208,42.38985715,4098.4,4098.3,0.00171874]
[1761628270610,42.38985715,4098.4,4098.3,0.31471874]
[1761628271700,42.18505715,4098.4,4098.3,0.52521874]
[1761628272304,42.38985715,4098.4,4098.3,0.52521874]
[1761628272713,43.43810715,4098.4,4098.3,0.31471874]
[1761628273318,43.43810715,4098.4,4098.3,0.52521874]
[1761628273606,43.23330715,4098.4,4098.3,0.52521874]
[1761628274210,42.18505715,4098.4,4098.3,0.73981874]
[1761628274515,1.0619,4098.6,4098.4,0.7381]
[1761628274516,0.43919,4098.5,4098.4,0.7381]
[1761628274912,0.64399,4098.5,4098.4,0.7381]
[1761628279204,0.84879,4098.5,4098.4,0.7381]
[1761628280614,1.05359,4098.5,4098.4,0.5235]
[1761628280819,1.0536,4098.4,4098.3,0.31471874]
[1761628284224,0.4392,4098.4,4098.3,0.73981874]
[1761628286214,0.4392,4098.4,4098.3,0.72547797]
[1761628286917,0.6491,4098.4,4098.3,0.72547797]
[1761628287223,0.6491,4098.4,4098.3,0.72855881]
[1761628288920,0.4392,4098.4,4098.3,0.72855881]
[1761628289626,0.4392,4098.4,4098.3,1.16776881]
[1761628289927,0.4392,4098.4,4098.3,0.72855881]
[1761628290526,0.4392,4098.4,4098.3,1.16776881]
[1761628291418,0.43919,4098.5,4098.4,1.17729]
[1761628291620,0.43919,4098.5,4098.4,2.22554]
[1761628292824,0.43919,4098.5,4098.4,1.78635]
[1761628294726,0.65649,4098.5,4098.4,1.78635]
[1761628295327,0.87379,4098.5,4098.4,0.7381]
[1761628296023,1.09109,4098.5,4098.4,0.313]
[1761628296526,0.87379,4098.5,4098.4,0.7495]
[1761628296825,0.65649,4098.5,4098.4,0.7495]
[1761628298022,0.87379,4098.5,4098.4,0.7495]
[1761628301028,1.09109,4098.5,4098.4,0.7495]
[1761628301228,1.09109,4098.5,4098.4,0.313]
[1761628306428,1.0911,4098.4,4098.3,0.00308084]
[1761628306629,1.62867247,4098.4,4098.3,0.00308084]
[1761628306824,2.88655038,4098.4,4098.3,0.00308084]
[1761628310936,1.09115,4097.9,4097.8,0.36650334]
[1761628311936,1.09115,4097.9,4097.8,0.36875259]
[1761628312135,41.89115,4097.9,4097.8,0.36875259]
[1761628314843,1.09122,4097.3,4097.2,0.5607]
[1761628315036,0.87392,4097.3,4097.2,0.5607]
[1761628315226,0.87392,4097.3,4097.2,0.7786]
[1761628315431,41.67392,4097.3,4097.2,0.7786]
[1761628315831,41.67392,4097.3,4097.2,0.78050925]
[1761628319031,41.23932,4097.3,4097.2,0.78050925]
[1761628319535,0.43932,4097.3,4097.2,0.78050925]
[1761628319936,41.89122,4097.3,4097.2,0.56260925]
[1761628320237,41.67392,4097.3,4097.2,0.56260925]
[1761628320439,41.67392,4097.3,4097.2,0.78050925]
[1761628323535,41.89122,4097.3,4097.2,0.00190925]
[1761628325938,41.89122,4097.3,4097.2,0.34250925]
[1761628328046,41.23932,4097.3,4097.2,0.79750925]
[1761628329546,41.23932,4097.3,4097.2,1.23683925]
[1761628329853,41.23932,4097.3,4097.2,0.79750925]
[1761628333742,41.23932,4097.3,4097.2,1.23683925]
[1761628334149,41.23932,4097.3,4097.2,0.79750925]
[1761628334351,0.43932,4097.3,4097.2,0.79750925]
[1761628334849,41.45282,4097.3,4097.2,0.79750925]
[1761628335345,0.65282,4097.3,4097.2,1.23683925]
[1761628336246,0.43932,4097.3,4097.2,1.23683925]
[1761628336550,0.43932,4097.3,4097.2,2.55366534]
[1761628337354,0.43932,4097.3,4097.2,2.11433534]
[1761628338142,0.43931,4097.4,4097.3,0.4393]
[1761628338350,2.13506312,4098.4,4097.4,1.22489]
[1761628338351,0.4393,4097.5,4097.4,1.22489]
[1761628338753,0.4393,4097.5,4097.4,2.54171609]
[1761628338948,40.8,4097.8,4097.7,0.455]
[1761628339252,40.8,4097.8,4097.7,0.7856]
[1761628339451,0.65276,4097.8,4097.7,0.7856]
[1761628341853,0.86916,4097.8,4097.7,0.7856]
[1761628342050,1.08676,4097.8,4097.7,0.7856]
[1761628343054,0.86916,4097.8,4097.7,0.7856]
[1761628346159,0.86916,4097.8,4097.7,0.77699555]
[1761628347455,0.86916,4097.8,4097.7,0.54549555]
[1761628347456,1.09536,4097.8,4097.7,0.54549555]
[1761628350162,1.09536,4097.8,4097.7,0.3306]
[1761628350659,0.87899,4097.6,4097.5,0.3306]
[1761628350858,1.09539,4097.6,4097.5,0.3306]
[1761628353857,41.89539,4097.6,4097.5,0.3306]
[1761628360662,0.66551,4097.4,4097.3,1.3159647]
[1761628360866,1.10092,4097.3,4097.2,0.00190925]
[1761628361260,1.10092,4097.3,4097.2,0.33620925]
[1761628362765,1.10092,4097.3,4097.2,0.00190925]
[1761628363673,1.10092,4097.3,4097.2,0.33620925]
[1761628363973,1.63821002,4097.3,4097.2,0.33620925]
[1761628365471,1.10092,4097.3,4097.2,0.00190925]
[1761628366770,1.63789923,4097.3,4097.2,0.00190925]
[1761628369469,42.43789923,4097.3,4097.2,0.00190925]
[1761628380582,42.43789923,4097.3,4097.2,0.33620925]
[1761628381978,42.21169923,4097.3,4097.2,0.76990925]
[1761628382178,42.43789923,4097.3,4097.2,0.55110925]
[1761628382375,42.43789923,4097.3,4097.2,0.33620925]
[1761628382575,42.43789923,4097.3,4097.2,0.00190925]
[1761628384183,42.43789923,4097.3,4097.2,0.33620925]
[1761628384984,42.43789923,4097.3,4097.2,0.56200925]
[1761628385678,42.43789923,4097.3,4097.2,0.33620925]
[1761628386780,42.21169923,4097.3,4097.2,0.78420925]
[1761628387080,41.67472,4097.3,4097.2,0.78420925]
[1761628388082,41.90092,4097.3,4097.2,0.33620925]
[1761628388384,42.43790298,4097.3,4097.2,0.33620925]
[1761628391881,42.43790298,4097.3,4097.2,0.00190925]
[1761628393681,42.43790298,4097.3,4097.2,0.32790925]
[1761628402392,41.77630298,4097.3,4097.2,0.76870925]
[1761628402589,41.23932,4097.3,4097.2,0.76870925]
[1761628402792,42.00205275,4097.3,4097.2,0.76870925]
[1761628403286,41.46552,4097.3,4097.2,0.76870925]
[1761628403592,0.43932,4097.3,4097.2,0.76870925]
[1761628403787,1.11432,4097.3,4097.2,1.86365392]
[1761628403990,41.91432,4097.3,4097.2,1.86365392]
[1761628404184,41.91432,4097.3,4097.2,0.54650925]
[1761628406091,41.91432,4097.3,4097.2,0.5413466]
[1761628407093,41.91432,4097.3,4097.2,0.54348522]
[1761628408187,41.91432,4097.3,4097.2,0.00213862]
[1761628409694,42.45086962,4097.3,4097.2,0.00213862]
[1761628410982,42.45086962,4097.3,4097.2,0.32813862]
[1761628415193,42.22466962,4097.3,4097.2,0.75463862]
[1761628415397,42.45416962,4097.3,4097.2,0.75463862]
[1761628415800,42.45416962,4097.3,4097.2,0.53843862]
[1761628420792,42.45416962,4097.3,4097.2,0.32813862]
[1761628422100,42.45416962,4097.3,4097.2,0.00213862]
[1761628422805,42.45416962,4097.3,4097.2,0.32073862]
[1761628425401,43.71299184,4097.3,4097.2,0.00213862]
[1761628427201,42.45416962,4097.3,4097.2,0.00213862]
[1761628427501,43.71299184,4097.3,4097.2,0.00213862]
[1761628431099,1.1204,4096.5,4096.4,1.63574467]
[1761628431295,1.65287619,4096.5,4096.4,0.3186]
[1761628431997,42.45287619,4096.5,4096.4,0.32080803]
[1761628432197,42.45287619,4096.5,4096.0,0.3186]
[1761628432198,0.89095,4096.1,4096.0,0.3186]
[1761628432395,2.37927222,4096.1,4096.0,0.3186]
[1761628433003,43.17927222,4096.1,4096.0,0.3186]
[1761628433200,43.18168914,4096.1,4096.0,0.32127411]
[1761628433504,43.71360594,4096.1,4096.0,0.00267411]
[1761628435104,44.77930594,4096.1,4096.0,0.00267411]
[1761628435297,1.12055,4095.1,4094.9,1.31714467]
[1761628435498,0.681,4094.8,4094.7,0.5289]
[1761628435803,0.681,4094.8,4094.7,0.7451]
[1761628435804,0.4515,4094.8,4094.7,0.7451]
[1761628436206,41.2515,4094.8,4094.7,0.7451]
[1761628436406,41.2515,4094.8,4094.7,0.74746928]
[1761628438701,41.0295,4094.8,4094.7,0.74746928]
[1761628440605,41.46908,4094.8,4094.7,0.74746928]
[1761628440803,41.23958,4094.8,4094.7,0.74746928]
[1761628442104,41.23958,4094.8,4094.7,1.18706928]
[1761628442307,41.23958,4094.8,4094.7,9.18706928]
[1761628442503,0.2295,4095.7,4095.5,0.2162]
[1761628442707,0.89099,4095.7,4095.6,0.7451]
[1761628443112,41.69099,4095.7,4095.6,0.7451]
[1761628444011,0.89099,4095.7,4095.6,0.7451]
[1761628446106,1.12029,4095.7,4095.6,0.7451]
[1761628446512,0.89099,4095.7,4095.6,0.7451]
[1761628447607,41.69099,4095.7,4095.6,0.7451]
[1761628448905,41.23949,4095.7,4095.6,0.7451]
[1761628449112,0.43949,4095.7,4095.6,0.7451]
[1761628449712,0.66879,4095.7,4095.6,0.7451]
[1761628451313,0.43949,4095.8,4095.7,0.5631]
[1761628451514,0.43949,4095.8,4095.7,0.7936]
[1761628452620,0.66879,4095.8,4095.7,1.23308]
[1761628455821,0.66879,4095.8,4095.7,0.7936]
[1761628456227,0.88339,4095.8,4095.7,0.7936]
[1761628458018,0.88339,4095.8,4095.7,1.23309]
[1761628458215,41.23947,4095.9,4095.8,0.5631]
[1761628458412,41.46877,4095.9,4095.8,0.5631]
[1761628463725,41.46877,4095.9,4095.8,0.3365]
[1761628463927,1.1127,4095.6,4095.5,0.1265]
[1761628464221,41.8987,4095.9,4095.3,1.31714467]
[1761628464222,1.11272,4095.4,4095.3,0.2266]
[1761628464420,1.11272,4095.4,4095.3,0.5631]
[1761628464816,1.11272,4095.4,4095.2,1.31714467]
[1761628465018,0.88348,4094.8,4094.7,1.31951395]
[1761628465221,1.90008,4094.8,4094.7,0.45946928]
[1761628465420,42.70008,4094.8,4094.7,0.79596928]
[1761628465618,42.48548,4094.8,4094.7,0.79596928]
[1761628465817,1.68548,4094.8,4094.7,0.79596928]
[1761628466027,1.68548,4094.8,4094.7,0.79287171]
[1761628466527,42.48548,4094.8,4094.7,0.79287171]
[1761628467129,42.48548,4094.8,4094.7,0.79532245]
[1761628468432,42.71548,4094.8,4094.7,0.00245074]
[1761628469629,42.71548,4094.8,4094.7,0.33895074]
[1761628470226,42.71548,4094.8,4094.7,0.00245074]
[1761628479731,43.76610059,4094.8,4094.7,0.00245074]
[1761628482547,1.66978,4094.8,4094.7,1.84147133]
[1761628482744,1.89338,4094.8,4094.7,0.79085074]
[1761628483952,42.69338,4094.8,4094.7,0.79085074]
[1761628484550,42.92358,4094.8,4094.7,0.79085074]
[1761628484848,1.89338,4094.8,4094.7,0.79085074]
[1761628485549,42.69338,4094.8,4094.7,0.79085074]
[1761628486240,42.46978,4094.8,4094.7,0.79085074]
[1761628488053,42.69998,4094.8,4094.7,0.79085074]
[1761628488753,42.46978,4094.8,4094.7,0.79085074]
[1761628491547,42.25618,4094.8,4094.7,0.79085074]
[1761628494858,42.48638,4094.8,4094.7,0.79085074]
[1761628495963,42.25618,4094.8,4094.7,0.79085074]
[1761628501061,42.48638,4094.8,4094.7,0.34825074]
[1761628501358,43.53700059,4094.8,4094.7,0.00245074]
[1761628501560,44.07111132,4094.8,4094.7,0.00245074]
[1761628503856,43.02049073,4094.8,4094.7,0.34825074]
[1761628504056,42.79029073,4094.8,4094.7,0.79085074]
[1761628504360,41.8166,4094.8,4094.7,0.79085074]
[1761628504560,42.25618,4094.8,4094.7,0.79085074]
[1761628505858,43.53690059,4094.8,4094.7,0.00245074]
[1761628506561,43.53690059,4094.8,4094.7,0.34605074]
[1761628506756,43.53690059,4094.8,4094.7,0.00245074]
[1761628507664,42.48628,4094.8,4094.7,0.34605074]
[1761628508263,42.48628,4094.8,4094.7,0.56785074]
[1761628508766,42.48628,4094.8,4094.7,0.34605074]
[1761628509764,42.48648,4094.8,4094.7,0.56785074]
[1761628510962,1.0166,4094.8,4094.7,2.53689541]
[1761628511264,0.4501,4095.5,4095.4,0.5559]
[1761628511461,0.98479737,4095.5,4095.4,0.7777]
[1761628511657,1.42430737,4095.5,4095.4,0.7777]
[1761628511862,0.88961,4095.5,4095.4,1.21722]
[1761628512267,0.2289,4095.5,4095.4,1.21722]
[1761628512564,0.2289,4095.5,4095.4,2.53474236]
[1761628513161,0.4501,4095.5,4095.4,1.21722]
[1761628513365,0.88961,4095.5,4095.4,0.7777]
[1761628515056,1.11991,4095.5,4095.4,0.5654]
[1761628515270,0.88961,4095.5,4095.4,0.5654]
[1761628515459,0.88961,4095.5,4095.4,0.7777]
[1761628515762,0.88961,4095.5,4095.4,1.82832059]
[1761628516563,0.66841,4095.5,4095.4,2.26784059]
[1761628519969,0.43951,4095.5,4095.4,2.26784059]
[1761628520367,0.4395,4095.6,4095.5,1.3533]
[1761628521468,40.8,4095.8,4095.7,0.7777]
[1761628521674,40.8,4095.8,4095.7,1.82832059]
[1761628522170,41.23948,4095.8,4095.7,2.26781059]
[1761628524575,40.8,4095.8,4095.7,2.26781059]
[1761628525068,41.23948,4095.8,4095.7,2.26781059]
[1761628526074,40.8,4095.8,4095.7,2.26595206]
[1761628526269,41.23948,4095.8,4095.7,2.26595206]
[1761628526462,41.23948,4095.8,4095.7,0.77584147]
[1761628526673,41.47168,4095.8,4095.7,0.56354147]
[1761628527373,41.23948,4095.8,4095.7,0.77584147]
[1761628527573,41.23948,4095.8,4095.7,1.21533147]
[1761628530678,41.23948,4095.8,4095.7,0.77584147]
[1761628531878,41.47168,4095.8,4095.7,0.77584147]
[1761628532176,41.23948,4095.8,4095.7,0.77584147]
[1761628534178,41.47168,4095.8,4095.7,0.34174147]
[1761628538577,41.47168,4095.8,4095.7,0.56094147]
[1761628539286,41.23948,4095.8,4095.7,0.77304147]
[1761628539678,41.23948,4095.8,4095.7,1.21253147]
[1761628539882,41.23948,4095.8,4095.7,2.09056383]
[1761628540178,41.47108,4095.8,4095.7,2.09056383]
[1761628541290,41.47108,4095.8,4095.7,0.77304147]
[1761628541984,41.23948,4095.8,4095.7,0.77304147]
[1761628542184,41.23948,4095.8,4095.7,2.09041661]
[1761628542396,41.47108,4095.8,4095.7,0.77304147]
[1761628543187,41.47108,4095.8,4095.7,0.56094147]
[1761628543384,40.8,4095.8,4095.7,1.21253147]
[1761628543583,41.23948,4095.8,4095.7,0.77304147]
[1761628544382,41.47108,4095.8,4095.7,0.77304147]
[1761628544582,41.47108,4095.8,4095.7,1.21253147]
[1761628547384,41.47108,4095.8,4095.7,0.56094147]
[1761628547687,41.47108,4095.8,4095.7,1.00043147]
[1761628547984,41.23948,4095.8,4095.7,1.21253147]
[1761628548183,41.47108,4095.8,4095.7,1.21253147]
[1761628548583,41.47108,4095.8,4095.7,0.77304147]
[1761628548780,0.4572,4095.6,4095.4,2.19378585]
[1761628548982,1.12831,4095.5,4095.4,1.97346585]
[1761628549187,1.12831,4095.5,4095.4,0.2192]
[1761628549488,1.12831,4095.5,4095.4,0.5534]
[1761628549987,1.12831,4095.5,4095.4,0.99292]
[1761628550188,1.12831,4095.5,4095.4,2.74718585]
[1761628553788,0.89671,4095.5,4095.4,2.95928585]
[1761628554884,40.8,4095.8,4095.7,0.5534]
[1761628555090,40.8,4095.8,4095.7,1.20499]
[1761628555589,41.0316,4095.8,4095.7,1.20499]
[1761628555989,41.23948,4095.8,4095.7,1.20499]
[1761628561593,41.47108,4095.8,4095.7,1.20499]
[1761628564893,0.95011101,4096.0,4095.9,0.65647]
[1761628565191,0.4419,4097.2,4097.1,1.19364]
[1761628565496,40.8,4097.2,4097.1,2.51038383]
[1761628565699,40.8,4097.2,4097.1,1.19364]
[1761628566198,40.8029059,4097.2,4097.1,1.19364]
[1761628566692,40.8029059,4097.2,4097.1,2.50736415]
[1761628566892,40.8029059,4097.2,4097.1,1.19364]
[1761628567295,40.8029059,4097.2,4097.1,2.50609245]
[1761628567497,40.8029059,4097.2,4097.1,1.19364]
[1761628568400,0.0029059,4097.2,4097.1,1.19364]
[1761628568894,0.2304059,4097.2,4097.1,1.19364]
[1761628569085,0.4562059,4097.2,4097.1,1.19364]
[1761628569600,0.4562059,4097.2,4097.1,2.50469093]
[1761628569897,0.2304059,4097.2,4097.1,2.50469093]
[1761628570692,0.0029059,4097.2,4097.1,2.50469093]
[1761628570889,1.368,4097.6,4097.5,0.43929]
[1761628571091,0.67122,4098.2,4098.1,0.5511]
[1761628571291,41.69252,4098.2,4098.1,1.81049793]
[1761628571497,41.92452,4098.2,4098.1,1.81049793]
[1761628571896,41.92737688,4098.2,4098.1,1.8128462]
[1761628572498,41.69537688,4098.2,4098.1,2.4660762]
[1761628573794,0.45615688,4098.2,4098.1,2.4660762]
[1761628573999,0.89537688,4098.2,4098.1,2.0268462]
[1761628574196,0.45615688,4098.2,4098.1,2.4660762]
[1761628574396,41.25615688,4098.2,4098.1,2.4660762]
[1761628574792,41.69537688,4098.2,4098.1,2.4660762]
[1761628575100,0.00285688,4098.2,4098.1,2.4660762]
[1761628578405,1.05073041,4098.5,4098.4,1.2043]
[1761628578609,0.4391,4099.4,4099.3,0.4235]
[1761628578610,0.6666,4099.4,4099.3,0.4235]
[1761628578796,0.6666,4099.4,4099.3,0.7651]
[1761628578996,1.1244,4099.4,4099.3,0.7651]
[1761628579198,1.12725383,4099.4,4099.3,0.3416]
[1761628583601,1.12725383,4099.4,4098.7,0.2095]
[1761628583602,1.12445,4098.8,4098.7,0.2095]
[1761628583800,1.10060383,4099.4,4098.1,0.21184827]
[1761628583801,0.89252,4098.2,4098.1,0.21184827]
[1761628584006,0.89252,4098.2,4098.1,0.55344827]
[1761628584205,0.89252,4098.2,4098.1,0.76744827]
[1761628586105,0.89252,4098.2,4098.1,0.76633318]
[1761628586909,1.12452,4098.2,4098.1,0.34283318]
[1761628588511,1.12452,4098.2,4098.1,0.00123318]
[1761628588723,1.12342,4097.3,4097.2,0.3416]
[1761628588917,1.12342,4097.3,4097.2,0.5511]
[1761628589814,1.12342,4097.3,4097.2,0.3416]
[1761628590020,1.12342,4097.3,4097.2,0.34444837]
[1761628590224,1.12342,4097.3,4097.2,0.00284837]
[1761628591112,1.12342,4097.3,4097.2,0.34444837]
[1761628591321,1.12342,4097.3,4097.2,0.55394837]
[1761628591519,41.92342,4097.3,4097.2,0.55394837]
[1761628592119,41.69262,4097.3,4097.2,0.76794837]
[1761628592621,41.92342,4097.3,4097.2,0.76794837]
[1761628593024,41.69262,4097.3,4097.2,0.76794837]
[1761628594325,41.69261,4097.3,4097.2,0.76794837]
[1761628595227,41.23931,4097.3,4097.2,0.76794837]
[1761628596030,41.23931,4097.3,4097.2,1.20726837]
[1761628596623,0.2085,4097.7,4097.6,0.4414]
[1761628596818,0.86247,4097.7,4097.6,0.4414]
[1761628597128,0.4232,4097.3,4097.2,1.4750463]
[1761628597325,0.2085,4097.3,4097.2,2.4653663]
[1761628597729,0.6538,4097.8,4097.7,0.5352]
[1761628597930,1.09306,4097.8,4097.7,0.3224]
[1761628598127,0.43932,4097.3,4097.2,3.00675698]
[1761628598333,0.86252,4097.3,4097.2,1.9143763]
[1761628598832,0.86252,4097.3,4097.2,2.4653763]
[1761628599231,0.4393,4097.4,4097.3,0.7617]
[1761628599533,0.4393,4097.4,4097.3,1.2031]
[1761628599737,0.43929,4097.5,4097.4,1.2031]
[1761628600836,0.2085,4097.8,4097.7,0.7638]
[1761628601131,0.2085,4097.8,4097.7,1.81236906]
[1761628601333,0.86247,4097.8,4097.7,0.7638]
[1761628601532,1.09307,4097.8,4097.7,0.5352]
[1761628601731,1.09307,4097.8,4097.7,0.3224]
[1761628602929,1.09307,4097.7,4097.6,1.37096906]
[1761628604237,1.09307,4097.7,4097.6,1.58376906]
[1761628604532,0.86247,4097.7,4097.6,1.58376906]
[1761628604731,0.86247,4097.7,4097.6,1.81236906]
[1761628605137,1.09307,4097.7,4097.6,1.81236906]
[1761628606634,1.09307,4097.7,4097.6,1.58376906]
[1761628608337,0.86247,4097.7,4097.6,1.81236906]
[1761628608538,40.8,4097.9,4097.7,0.76167]
[1761628608836,0.43925,4097.9,4097.8,1.20306]
[1761628610034,0.9692,4098.0,4097.9,1.20305]
[1761628610239,0.9692,4098.0,4097.9,2.25161906]
[1761628610743,41.23922,4098.2,4098.1,1.20303]
[1761628611038,41.23922,4098.2,4098.1,2.5155057]
[1761628611936,41.23922,4098.2,4098.1,2.0762757]
[1761628612142,0.64772,4098.2,4098.1,2.0762757]
[1761628612337,0.64772,4098.2,4098.1,1.20303]
[1761628616842,0.86242,4098.2,4098.1,1.20303]
[1761628617036,0.64772,4098.2,4098.1,1.20303]
[1761628617346,0.64772,4098.2,4098.1,0.7638]
[1761628617846,0.64772,4098.2,4098.1,1.20303]
[1761628619344,0.64772,4098.2,4098.1,2.51693125]
[1761628619546,0.64772,4098.2,4098.1,3.56550031]
[1761628619850,0.2085,4098.2,4098.1,3.56550031]
[1761628620045,0.2085,4098.2,4098.1,2.25159906]
[1761628620646,1.09302,4098.2,4098.1,0.3224]
[1761628620843,1.09304,4098.0,4097.9,1.31392508]
[1761628621040,1.09305,4097.9,4097.8,0.3224]
[1761628621241,0.66986,4097.8,4097.7,1.31392508]
[1761628621449,0.86246,4097.8,4097.7,2.07772508]
[1761628621944,0.86242,4098.2,4098.1,0.5352]
[1761628622246,0.43922,4098.2,4098.1,3.12656844]
[1761628622544,0.43922,4098.2,4098.1,3.56579844]
[1761628622738,0.6477,4098.4,4098.2,0.3224]
[1761628622936,1.093,4098.4,4098.3,0.3224]
[1761628623142,1.09302,4098.2,4098.1,0.3224]
[1761628624352,1.11303,4098.1,4098.0,1.31419938]
[1761628624542,1.11304,4098.0,4097.9,1.31419938]
[1761628624742,1.11306,4097.8,4097.7,1.64869938]
[1761628624942,1.11306,4097.8,4097.7,1.85759938]
[1761628625340,1.11306,4097.8,4097.7,0.5434]
[1761628626441,1.11306,4097.8,4097.7,0.3345]
[1761628627152,0.2306,4097.8,4097.7,1.82516906]
[1761628627353,0.43926,4097.8,4097.7,2.26443906]
[1761628628046,0.43926,4097.8,4097.4,1.75565844]
[1761628628047,1.18579,4097.5,4097.4,0.96038483]
[1761628628348,1.18579,4097.5,4096.1,0.3383]
[1761628628349,2.19681,4096.9,4096.0,2.32697939]
[1761628628546,41.84856906,4096.1,4095.5,0.1293]
[1761628628746,2.53663812,4095.6,4095.5,0.07877612]
[1761628628951,3.06958963,4095.6,4095.5,0.07877612]
[1761628629147,3.06958963,4095.6,4095.0,0.3588]
[1761628629148,0.43955,4095.1,4095.0,0.3588]
[1761628629451,1.49002228,4095.1,4095.0,0.57388403]
[1761628629850,41.24145322,4095.1,4095.0,0.57388403]
[1761628630252,41.24145322,4095.1,4095.0,0.91218403]
[1761628633155,40.80190322,4095.1,4095.0,0.91218403]
[1761628636449,40.80190322,4095.1,4094.5,0.1293]
[1761628636656,3.67605791,4094.6,4094.5,0.1293]
[1761628637151,44.47605791,4094.6,4094.5,0.1293]
[1761628637754,44.47605791,4094.6,4094.5,0.1322285]
[1761628637951,44.47605791,4094.6,4094.0,0.1293]
[1761628638153,3.67605791,4094.1,4094.0,0.3588]
[1761628638453,3.67605791,4094.1,4094.0,0.4676]
[1761628638659,25.65505791,4094.1,4094.0,0.4676]
[1761628638859,44.47605791,4094.1,4094.0,0.4676]
[1761628639050,66.45505791,4094.1,4094.0,0.46996752]
[1761628639252,66.45605791,4094.1,4094.0,0.46996752]
[1761628640759,66.45605791,4094.1,4094.0,0.69946752]
[1761628640760,44.47605791,4094.1,4094.0,0.69946752]
[1761628642754,44.47605791,4094.1,4094.0,0.91206752]
[1761628644160,44.47605791,4094.1,4094.0,0.69946752]
[1761628644362,44.47605791,4094.1,4094.0,0.46996752]
[1761628644660,52.47605791,4094.1,4094.0,0.46996752]
[1761628644857,44.47605791,4094.1,4094.0,0.46996752]
[1761628645065,66.46205791,4094.1,4094.0,0.46996752]
[1761628645263,44.47605791,4094.1,4094.0,0.46996752]
[1761628645463,66.46205791,4094.1,4094.0,0.46996752]
[1761628645759,66.46205791,4094.1,4093.5,0.1293]
[1761628645965,3.67605791,4093.6,4093.5,0.1293]
[1761628646559,44.47605791,4093.6,4093.5,0.13111181]
[1761628647359,40.8,4093.6,4093.5,0.13111181]
[1761628647550,66.46405791,4093.6,4093.5,0.46941181]
[1761628647752,44.47605791,4093.6,4093.5,0.69891181]
[1761628647956,66.46405791,4093.6,4093.5,0.69891181]
[1761628649663,66.46405791,4093.6,4093.5,0.46941181]
[1761628650468,44.47605791,4093.6,4093.5,0.46941181]
[1761628650871,66.46605791,4093.6,4093.5,0.69891181]
[1761628651073,44.47605791,4093.6,4093.5,0.91151181]
[1761628651270,40.8,4093.6,4093.5,0.91151181]
[1761628651468,44.47605791,4093.6,4093.5,0.46941181]
[1761628652677,45.08175607,4093.6,4093.5,0.46941181]
[1761628653277,45.52146607,4093.6,4093.5,1.81e-06]
[1761628653678,67.51346607,4093.6,4093.5,1.81e-06]